bitfinex/quotes_SOLUSD_20240615
["timestamp","ask_amount","ask_price","bid_price","bid_amount"]
[1718430904431,6.4,144.84,144.83,2.5547]
[1718430905337,25.5443,144.85,144.83,2.5547]
[1718430905658,6.4,144.84,144.82,22.9937]
[1718430905825,21.7274,144.84,144.81,22.9949]
[1718430906035,8.9547,144.83,144.81,25.5498]
[1718430906550,14.0638,144.84,144.82,2.5548]
[1718430906751,6.4,144.84,144.83,7.6641]
[1718430906958,6.4,144.84,144.83,25.547]
[1718430907529,6.4,144.84,144.83,15.3282]
[1718430907736,6.4,144.84,144.83,7.6641]
[1718430908234,6.4,144.84,144.83,2.5547]
[1718430908429,8.9545,144.84,144.82,7.6642]
[1718430908650,8.9545,144.84,144.81,25.5495]
[1718430908651,6.4,144.83,144.81,25.5495]
[1718430908830,8.9547,144.83,144.81,25.5495]
[1718430909031,8.9547,144.83,144.81,7.6648]
[1718430909357,6.4,144.82,144.78,0.8492275]
[1718430909555,8.9551,144.81,144.79,7.6661]
[1718430909933,6.4,144.81,144.8,2.5552]
[1718430910144,8.955,144.81,144.79,25.5538]
[1718430910433,6.4,144.82,144.81,2.555]
[1718430910644,6.4,144.82,144.8,25.5516]
[1718430910833,6.4,144.82,144.81,2.555]
[1718430911238,7.6643,144.83,144.81,2.555]
[1718430911539,6.4,144.82,144.81,2.555]
[1718430911742,6.4,144.82,144.81,25.5505]
[1718430911949,6.4,144.83,144.82,2.5548]
[1718430912364,7.6638,144.84,144.82,2.5548]
[1718430912577,8.9547,144.83,144.81,25.5504]
[1718430912861,6.4,144.83,144.81,25.5504]
[1718430913078,8.9547,144.83,144.81,25.5504]
[1718430913440,8.9547,144.83,144.81,7.665]
[1718430914339,2.5544,144.85,144.83,2.5546]
[1718430914661,7.6628,144.86,144.84,2.5545]
[1718430914834,6.4,144.85,144.84,25.5452]
[1718430915042,15.3251,144.86,144.84,2.5545]
[1718430915367,8.9543,144.85,144.83,25.5462]
[1718430915539,6.4,144.85,144.84,2.5545]
[1718430915872,8.9543,144.85,144.83,25.5461]
[1718430916340,6.4,144.85,144.84,2.5545]
[1718430916542,6.4,144.85,144.83,25.5461]
[1718430916960,8.9543,144.85,144.83,25.5461]
[1718430918357,2.5545,144.84,144.82,2.5547]
[1718430918549,8.9545,144.84,144.82,7.6644]
[1718430919771,7.6626,144.86,144.84,2.5544]
[1718430919962,6.4,144.85,144.83,7.664]
[1718430920162,6.4,144.85,144.83,15.3281]
[1718430920552,2.5543,144.86,144.84,7.6635]
[1718430920857,6.4,144.86,144.84,15.3271]
[1718430921177,8.9542,144.86,144.84,7.6635]
[1718430922079,14.0625,144.86,144.84,2.5545]
[1718430922458,16.5086,144.9,144.85,0.17]
[1718430922659,2.5536,144.89,144.87,2.5538]
[1718430922864,29.3817,144.9,144.87,7.6617]
[1718430923063,2.5536,144.89,144.87,7.6617]
[1718430923452,8.9536,144.89,144.87,7.6617]
[1718430923653,14.0609,144.89,144.87,2.5538]
[1718430924675,14.061,144.89,144.87,2.5539]
[1718430925479,7.661,144.89,144.87,2.5539]
[1718430926883,7.6606,144.9,144.88,2.5538]
[1718430927059,14.0606,144.9,144.88,2.5538]
[1718430927760,21.721,144.9,144.87,25.5394]
[1718430928463,7.6606,144.9,144.88,2.5537]
[1718430929360,21.721,144.9,144.87,25.5394]
[1718430929783,31.935,144.9,144.87,25.5394]
[1718430930481,29.3814,144.9,144.87,25.5394]
[1718430930662,2.5536,144.89,144.87,25.5394]
[1718430930989,2.5536,144.89,144.87,7.6617]
[1718430931971,2.5532,144.92,144.9,2.5534]
[1718430932392,2.5532,144.92,144.9,7.6603]
[1718430932595,7.6594,144.92,144.9,2.5534]
[1718430932768,15.3168,144.94,144.91,12.7661]
[1718430932960,2.5529,144.93,144.91,2.5532]
[1718430933156,15.3176,144.93,144.9,26.91179863]
[1718430933363,7.6589,144.93,144.91,2.5533]
[1718430933791,25.5287,144.94,144.91,7.6598]
[1718430934012,2.5529,144.93,144.91,7.6598]
[1718430934216,2.5528,144.94,144.91,10.213]
[1718430934515,2.5528,144.94,144.91,22.979]
[1718430934817,15.3167,144.94,144.91,25.5321]
[1718430935516,15.3167,144.94,144.91,2.5531]
[1718430935517,7.6588,144.93,144.91,2.5531]
[1718430935676,2.5529,144.93,144.91,2.5531]
[1718430936984,2.5531,144.92,144.9,2.7234]
[1718430937210,2.5533,144.91,144.89,7.6606]
[1718430937693,25.6,144.97,144.87,21.9727]
[1718430937694,14.0606,144.9,144.87,5.108]
[1718430937914,6.4,144.9,144.88,15.3227]
[1718430938088,31.9337,144.91,144.88,15.3227]
[1718430938614,2.5534,144.9,144.88,7.6613]
[1718430938826,14.0601,144.91,144.88,15.3226]
[1718430939490,14.0601,144.91,144.89,2.5536]
[1718430939691,7.6601,144.91,144.88,15.3226]
[1718430941123,7.6601,144.91,144.89,2.5536]
[1718430941506,24.2725,144.92,144.9,2.5534]
[1718430941507,8.9532,144.92,144.9,2.5534]
[1718430941708,6.4,144.92,144.9,7.6602]
[1718430943146,8.9531,144.92,144.9,7.6602]
[1718430944408,6.4,144.92,144.9,7.6602]
[1718430944809,8.9531,144.92,144.9,7.6602]
[1718430946121,8.9531,144.92,144.9,2.5534]
[1718430946420,2.5529,144.93,144.89,0.17]
[1718430946620,8.9531,144.92,144.9,7.6601]
[1718430947527,8.9531,144.92,144.9,2.5533]
[1718430948211,7.6593,144.92,144.9,2.5533]
[1718430950044,8.9529,144.93,144.91,2.5532]
[1718430950724,14.0588,144.93,144.91,2.5532]
[1718430952144,8.9529,144.93,144.91,2.5532]
[1718430952523,14.0586,144.94,144.92,2.5531]
[1718430952749,14.0586,144.94,144.91,25.5326]
[1718430953041,14.0586,144.94,144.92,2.5531]
[1718430953544,14.0586,144.94,144.91,25.5326]
[1718430953930,2.5529,144.93,144.91,7.6596]
[1718430954129,7.6589,144.93,144.9,22.9805]
[1718430954648,14.0589,144.93,144.9,25.5338]
[1718430954829,14.0589,144.93,144.91,2.5533]
[1718430955151,2.5529,144.93,144.91,7.6599]
[1718430955352,31.9285,144.94,144.91,7.6599]
[1718430955522,2.5529,144.93,144.91,7.6599]
[1718430955716,2.5533,144.91,144.89,2.5536]
[1718430955922,2.5533,144.91,144.89,7.6608]
[1718430956122,2.5533,144.91,144.89,2.5536]
[1718430956543,2.5533,144.91,144.89,7.6609]
[1718430956845,8.9532,144.92,144.89,22.9828]
[1718430957022,21.7189,144.92,144.89,25.5363]
[1718430957754,8.9532,144.92,144.9,2.5534]
[1718430959144,21.7189,144.92,144.89,25.5363]
[1718430959329,14.0595,144.92,144.9,2.5534]
[1718430959535,14.0595,144.92,144.89,22.9828]
[1718430959741,14.0595,144.92,144.89,25.5363]
[1718430959928,14.0595,144.92,144.9,2.5534]
[1718430960250,8.9532,144.92,144.9,2.5534]
[1718430960644,2.5532,144.92,144.9,2.5534]
[1718430960856,6.4,144.92,144.9,7.6603]
[1718430961724,2.5531,144.93,144.91,2.5532]
[1718430962048,2.5529,144.93,144.91,7.6598]
[1718430962230,6.4,144.92,144.91,2.5532]
[1718430963462,6.4,144.92,144.9,25.5342]
[1718430964139,6.4,144.92,144.9,7.66]
[1718430964546,6.4,144.92,144.9,15.3204]
[1718430965627,24.2735,144.91,144.88,15.3225]
[1718430965838,6.4,144.9,144.88,25.5379]
[1718430966041,6.4,144.89,144.87,22.9853]
[1718430966232,6.4,144.89,144.88,7.6613]
[1718430966756,6.4,144.89,144.88,15.3228]
[1718430967140,6.4,144.89,144.88,25.5381]
[1718430967561,8.9535,144.9,144.88,25.5381]
[1718430967732,6.4,144.9,144.89,2.5536]
[1718430968228,31.9352,144.9,144.87,25.5393]
[1718430968443,6.4,144.89,144.88,2.5537]
[1718430969041,6.4,144.89,144.88,25.5381]
[1718430974056,6.4,144.9,144.88,25.5381]
[1718430974267,6.4,144.9,144.89,15.3214]
[1718430974970,6.4,144.9,144.89,7.6605]
[1718430975173,6.4,144.9,144.89,2.5534]
[1718430976046,14.0605,144.9,144.84,15.3699]
[1718430976235,6.4,144.89,144.88,2.5538]
[1718430976434,6.4,144.89,144.88,7.6614]
[1718430976657,6.4,144.89,144.88,2.5538]
[1718430978554,6.4,144.89,144.88,7.6614]
[1718430978766,6.4,144.89,144.88,2.5538]
[1718430979274,6.4,144.89,144.88,7.6614]
[1718430981263,6.4,144.89,144.88,15.3229]
[1718430981571,6.4,144.89,144.88,2.5538]
[1718430983173,6.4,144.89,144.81,6.3566]
[1718430983174,6.4,144.89,144.8,16.5144]
[1718430983376,7.6648,144.82,144.8,2.5552]
[1718430983556,6.4,144.82,144.81,2.555]
[1718430983753,6.4,144.82,144.81,15.3303]
[1718430984268,6.4,144.82,144.81,25.5505]
[1718430984568,2.5547,144.83,144.81,25.5505]
[1718430984752,7.6639,144.84,144.82,7.6645]
[1718430985063,6.4,144.83,144.82,2.5548]
[1718430985270,8.9547,144.83,144.81,22.9953]
[1718430985457,8.9547,144.83,144.82,2.5548]
[1718430985669,14.0641,144.83,144.81,7.6648]
[1718430986660,25.5458,144.84,144.82,2.5548]
[1718430986866,8.9547,144.83,144.81,25.5501]
[1718430987077,6.4,144.82,144.81,25.5501]
[1718430987761,6.4,144.82,144.81,7.665]
[1718430990088,15.3283,144.83,144.81,7.665]
[1718430990288,6.4,144.82,144.81,7.665]
[1718430991567,25.5463,144.84,144.82,2.5548]
[1718430991782,8.9548,144.83,144.81,25.5499]
[1718430991986,6.4,144.82,144.81,25.5499]
[1718430992480,6.4,144.82,144.81,7.6649]
[1718430992862,6.4,144.82,144.81,2.5549]
[1718430995373,6.4,144.82,144.81,7.665]
[1718430995576,2.5548,144.83,144.82,2.5548]
[1718430995774,8.9548,144.83,144.82,2.5548]
[1718430996285,8.9548,144.83,144.81,25.5502]
[1718430996502,6.4,144.82,144.81,25.5502]
[1718430996663,6.4,144.82,144.81,7.665]
[1718430997683,6.4,144.82,144.81,2.5549]
[1718430998670,8.9548,144.82,144.81,2.5549]
[1718430999277,8.9548,144.82,144.8,25.5511]
[1718430999464,14.0645,144.82,144.8,25.5511]
[1718430999669,14.0652,144.81,144.79,7.6658]
[1718431000400,14.0652,144.81,144.79,15.332]
[1718431000890,8.955,144.81,144.8,2.5552]
[1718431001693,6.4,144.81,144.8,2.5552]
[1718431002505,7.665,144.82,144.8,7.6656]
[1718431002708,6.4,144.81,144.8,7.6656]
[1718431003200,6.4,144.81,144.8,15.3313]
[1718431003576,6.4,144.81,144.78,0.8492275]
[1718431003783,6.4,144.79,144.78,16.1824275]
[1718431004083,6.4,144.79,144.78,26.4048275]
[1718431004283,6.4,144.79,144.78,8.5156275]
[1718431004588,6.4,144.79,144.78,26.4048275]
[1718431006774,6.4,144.79,144.78,0.8492275]
[1718431006983,6.4,144.79,144.78,3.4048275]
[1718431007783,2.5553,144.8,144.78,8.5159275]
[1718431007988,6.4,144.79,144.78,8.5159275]
[1718431009103,6.4,144.79,144.78,3.4048275]
[1718431009791,8.9554,144.79,144.78,0.8492275]
[1718431010097,6.4,144.79,144.78,3.4048275]
[1718431010501,125.6,144.83,144.78,0.8492275]
[1718431010805,2.5552,144.8,144.78,8.5155275]
[1718431011007,6.4,144.79,144.78,26.4046275]
[1718431011678,6.4,144.79,144.78,8.5155275]
[1718431012103,6.4,144.79,144.78,3.4046275]
[1718431012908,8.9554,144.79,144.78,3.4046275]
[1718431013094,6.4,144.79,144.78,3.4046275]
[1718431013783,8.9554,144.79,144.78,3.4048275]
[1718431014102,6.4,144.79,144.78,16.1828275]
[1718431014303,6.4,144.79,144.78,8.5160275]
[1718431014507,6.4,144.79,144.78,16.1828275]
[1718431015377,6.4,144.79,144.78,26.4052275]
[1718431015693,6.4,144.79,144.78,26.4050275]
[1718431017112,6.4,144.79,144.78,8.5158275]
[1718431018115,6.4,144.79,144.78,16.1826275]
[1718431018317,6.4,144.79,144.78,0.8492275]
[1718431018534,31.9541,144.79,144.78,0.8492275]
[1718431018817,14.0662,144.79,144.78,0.8492275]
[1718431019591,6.4,144.79,144.78,3.4048275]
[1718431019990,8.9554,144.79,144.78,3.4048275]
[1718431020622,6.4,144.79,144.78,8.5160275]
[1718431020799,6.4,144.79,144.78,3.4048275]
[1718431020995,5.1104,144.81,144.79,2.5552]
[1718431021199,2.5552,144.8,144.78,26.4043275]
[1718431021401,2.5551,144.81,144.79,5.1106]
[1718431021596,2.5552,144.8,144.78,23.8486275]
[1718431021794,2.5552,144.8,144.78,26.4040275]
[1718431021795,7.6657,144.8,144.78,26.4040275]
[1718431022100,7.6657,144.8,144.78,8.5156275]
[1718431022310,15.3314,144.8,144.78,8.5156275]
[1718431022514,7.6657,144.8,144.78,8.5156275]
[1718431024520,15.3314,144.8,144.78,8.5156275]
[1718431024733,15.3314,144.8,144.78,3.4046275]
[1718431025198,2.5554,144.79,144.78,3.4046275]
[1718431025594,15.3324,144.79,144.78,0.8492275]
[1718431026018,7.6662,144.79,144.78,0.8492275]
[1718431026924,25.5541,144.79,144.78,0.8492275]
[1718431027607,7.6662,144.79,144.78,0.8492275]
[1718431028103,15.3324,144.79,144.78,0.8492275]
[1718431028624,7.6662,144.79,144.78,0.8492275]
[1718431029123,25.5541,144.79,144.78,0.8492275]
[1718431029599,17.8879,144.79,144.78,0.8492275]
[1718431029911,25.5541,144.79,144.78,0.8492275]
[1718431030304,7.6662,144.79,144.78,0.8492275]
[1718431030697,15.3324,144.79,144.78,0.8492275]
[1718431030900,7.6662,144.79,144.78,0.8492275]
[1718431034125,25.5534,144.8,144.78,3.4048275]
[1718431034331,6.4,144.79,144.78,3.4048275]
[1718431034703,8.9554,144.79,144.78,0.8492275]
[1718431034904,8.9554,144.79,144.78,3.4048275]
[1718431035100,2.5554,144.79,144.78,3.4048275]
[1718431035325,6.4,144.79,144.78,3.4048275]
[1718431035628,31.9541,144.79,144.78,0.8492275]
[1718431036002,33.9541,144.79,144.78,0.8492275]
[1718431036428,2.5565,144.73,144.67,16.0405]
[1718431036731,6.4,144.73,144.72,2.5565]
[1718431037142,6.4,144.73,144.72,7.6698]
[1718431037343,6.4,144.73,144.72,2.5565]
[1718431037506,6.4,144.73,144.72,7.6698]
[1718431037714,6.4,144.73,144.72,15.3397]
[1718431038328,2.5567,144.72,144.7,2.5569]
[1718431038533,6.4,144.71,144.7,7.6708]
[1718431039248,8.9567,144.72,144.7,7.6708]
[1718431039538,24.2972,144.72,144.67,16.0405]
[1718431039735,14.0703,144.72,144.7,2.5569]
[1718431041128,7.6684,144.75,144.73,2.5564]
[1718431041331,2.5561,144.75,144.73,7.6692]
[1718431041510,8.9561,144.75,144.74,2.5563]
[1718431041710,15.3365,144.76,144.74,2.5563]
[1718431041934,6.4,144.75,144.74,2.5563]
[1718431042114,2.5563,144.74,144.72,23.0093]
[1718431042321,14.0689,144.74,144.72,7.6697]
[1718431042618,19.1816,144.74,144.72,2.5565]
[1718431042816,19.1816,144.74,144.71,15.3406]
[1718431042817,8.9565,144.73,144.71,15.3406]
[1718431043133,8.9565,144.73,144.71,15.3407]
[1718431043333,8.9565,144.73,144.72,2.5566]
[1718431043513,8.9565,144.73,144.71,15.3406]
[1718431044114,8.9565,144.73,144.72,2.5566]
[1718431044420,6.4,144.73,144.71,25.5677]
[1718431044620,6.4,144.73,144.72,25.5664]
[1718431044830,6.4,144.74,144.73,2.5564]
[1718431045532,15.3358,144.76,144.74,2.5562]
[1718431045722,6.4,144.75,144.74,7.6688]
[1718431046034,6.4,144.75,144.74,2.5562]
[1718431046337,6.4,144.75,144.73,7.669]
[1718431046338,14.0684,144.75,144.73,7.669]
[1718431046522,8.9561,144.75,144.74,2.5563]
[1718431046726,6.4,144.75,144.74,15.3378]
[1718431046913,8.9559,144.76,144.75,2.5561]
[1718431047530,6.4,144.78,144.73,0.17]
[1718431047829,31.9565,144.78,144.76,2.5559]
[1718431048008,29.4008,144.78,144.76,2.5559]
[1718431048618,8.9557,144.78,144.76,15.3351]
[1718431048933,8.9557,144.78,144.76,23.0031]
[1718431049130,8.9556,144.78,144.77,2.5557]
[1718431049549,2.5556,144.78,144.77,2.5557]
[1718431049737,2.5556,144.78,144.76,23.0031]
[1718431050040,25.5545,144.79,144.77,2.5557]
[1718431050335,2.5556,144.78,144.76,17.8912]
[1718431050529,2.5556,144.78,144.76,25.559]
[1718431051131,7.6668,144.78,144.76,15.3353]
[1718431051337,7.6668,144.78,144.76,7.6675]
[1718431051513,39.04714197,144.83,144.73,0.68]
[1718431051713,5.1105,144.8,144.78,2.5555]
[1718431051925,25.5527,144.8,144.78,2.5555]
[1718431053013,2.5554,144.79,144.78,2.5555]
[1718431053635,2.5554,144.79,144.77,23.0012]
[1718431053843,2.5554,144.79,144.78,2.5556]
[1718431054528,2.5554,144.79,144.77,25.5568]
[1718431056442,7.6662,144.79,144.77,25.5568]
[1718431056628,7.6662,144.79,144.77,15.334]
[1718431056939,7.6662,144.79,144.77,7.6669]
[1718431057756,7.6662,144.79,144.77,15.3342]
[1718431058243,6.4,144.81,144.76,10.2234]
[1718431058244,19.1756,144.81,144.78,25.5553]
[1718431058430,5.1106,144.8,144.78,7.6666]
[1718431058635,2.5554,144.79,144.78,2.5554]
[1718431059024,22.9974,144.8,144.78,2.5554]
[1718431059238,25.5528,144.8,144.78,2.5554]
[1718431059833,2.5554,144.79,144.78,2.5554]
[1718431060138,31.9527,144.8,144.78,2.5554]
[1718431060641,7.6659,144.8,144.78,7.6665]
[1718431060843,7.6655,144.81,144.79,7.6662]
[1718431061142,6.4,144.8,144.79,7.6662]
[1718431061557,21.7307,144.81,144.79,7.6662]
[1718431062253,15.3307,144.81,144.79,7.6662]
[1718431062428,21.7307,144.81,144.79,7.6662]
[1718431063134,15.3307,144.81,144.79,2.5554]
[1718431063332,8.9552,144.81,144.8,2.5552]
[1718431063535,15.3306,144.81,144.79,2.5552]
[1718431063731,2.5552,144.8,144.78,25.5552]
[1718431063929,2.5552,144.8,144.79,2.5554]
[1718431065147,25.5508,144.81,144.79,2.5554]
[1718431065351,25.5508,144.81,144.79,7.6662]
[1718431065649,31.9508,144.81,144.79,7.6662]
[1718431066024,14.0652,144.81,144.79,15.3324]
[1718431066227,14.0652,144.81,144.79,7.6662]
[1718431067546,21.7304,144.81,144.79,2.5554]
[1718431067732,2.5552,144.8,144.78,25.5549]
[1718431067935,31.9508,144.81,144.79,2.5554]
[1718431068243,2.5552,144.8,144.79,2.5554]
[1718431068422,2.5552,144.8,144.78,25.5549]
[1718431068627,12.7746,144.82,144.8,2.5551]
[1718431068850,21.7306,144.81,144.79,2.5553]
[1718431069652,2.5552,144.8,144.79,2.5553]
[1718431070030,31.9508,144.81,144.79,2.5553]
[1718431070652,2.5554,144.79,144.78,2.5555]
[1718431071134,2.5554,144.79,144.77,25.5565]
[1718431071336,31.9525,144.8,144.78,2.5556]
[1718431071551,25.5525,144.8,144.78,7.6667]
[1718431071755,14.0657,144.8,144.78,7.6667]
[1718431071946,10.2198,144.82,144.76,0.17]
[1718431072252,8.9552,144.8,144.79,2.5553]
[1718431072453,14.0657,144.8,144.78,7.6663]
[1718431073052,21.7314,144.8,144.78,7.6663]
[1718431073550,14.0657,144.8,144.78,7.6663]
[1718431074457,14.0657,144.8,144.78,15.3331]
[1718431074758,8.9552,144.8,144.78,15.3331]
[1718431075326,8.9552,144.8,144.79,2.5554]
[1718431075561,8.9552,144.8,144.78,25.5554]
[1718431076358,2.5552,144.8,144.78,25.5554]
[1718431076532,8.9552,144.8,144.78,25.5554]
[1718431077547,8.9552,144.8,144.79,2.5554]
[1718431077758,100.0,144.85,144.76,0.51]
[1718431077939,14.0653,144.81,144.79,2.5553]
[1718431078258,15.3305,144.81,144.79,2.5553]
[1718431078560,2.0,144.8,144.79,7.6661]
[1718431078940,4.5552,144.8,144.79,2.5553]
[1718431079533,4.5552,144.8,144.79,2.5554]
[1718431079867,22.9993,144.79,144.76,23.0026]
[1718431080029,23.0005,144.78,144.76,2.5558]
[1718431080235,14.0669,144.78,144.76,7.6676]
[1718431080666,14.0669,144.78,144.76,15.3354]
[1718431081244,6.4,144.78,144.77,25.5576]
[1718431081450,5.245073,144.78,144.77,25.5576]
[1718431081638,8.9554,144.79,144.78,2.5556]
[1718431082144,8.4,144.79,144.78,2.5556]
[1718431082661,23.7324,144.79,144.77,7.6671]
[1718431082842,6.4,144.78,144.77,7.6671]
[1718431083031,2.5557,144.77,144.76,2.5559]
[1718431083232,14.0675,144.77,144.72,16.0405]
[1718431083438,8.9559,144.76,144.75,2.5561]
[1718431083639,2.5559,144.76,144.75,2.5561]
[1718431083840,2.5558,144.77,144.76,2.5559]
[1718431084063,6.4,144.77,144.76,2.5559]
[1718431084288,22.9993,144.79,144.77,2.5557]
[1718431084557,23.0386,144.82,144.77,25.5576]
[1718431084558,6.4,144.78,144.77,25.5576]
[1718431084862,6.4,144.78,144.77,7.6672]
[1718431085056,6.4,144.78,144.77,25.5576]
[1718431085358,2.5554,144.79,144.78,2.5556]
[1718431085536,2.5554,144.79,144.77,25.5575]
[1718431085734,14.0662,144.79,144.77,17.8902]
[1718431086168,14.0662,144.79,144.77,7.6671]
[1718431086443,21.7324,144.79,144.77,7.6671]
[1718431086870,15.3324,144.79,144.77,7.6671]
[1718431087048,14.0662,144.79,144.77,7.6671]
[1718431087469,21.7324,144.79,144.77,2.5556]
[1718431087789,2.5556,144.78,144.76,25.5583]
[1718431088270,2.5556,144.78,144.77,2.5557]
[1718431088437,8.9555,144.79,144.77,15.3343]
[1718431088640,2.5555,144.79,144.78,2.5556]
[1718431089051,2.5555,144.79,144.77,25.5572]
[1718431089257,2.5555,144.79,144.77,17.89]
[1718431089258,7.6663,144.79,144.77,17.89]
[1718431089453,7.6663,144.79,144.77,7.667]
[1718431089860,7.6668,144.78,144.76,7.6675]
[1718431090458,2.5556,144.78,144.76,15.3353]
[1718431090649,2.5556,144.78,144.77,2.5557]
[1718431090863,31.9546,144.79,144.77,2.5557]
[1718431092104,2.5556,144.78,144.77,2.5557]
[1718431092492,2.5556,144.78,144.76,25.5591]
[1718431092810,2.5556,144.78,144.77,2.5557]
[1718431093003,14.0665,144.79,144.77,7.6672]
[1718431093199,2.5556,144.78,144.77,2.5557]
[1718431093391,31.9545,144.79,144.77,2.5557]
[1718431093894,14.0665,144.79,144.77,7.6671]
[1718431094682,25.5512,144.81,144.79,2.5553]
[1718431094890,25.5515,144.81,144.79,2.5553]
[1718431095089,31.9515,144.81,144.79,2.5553]
[1718431095374,7.6656,144.81,144.79,7.6661]
[1718431095579,21.7308,144.81,144.79,2.5553]
[1718431095886,2.5552,144.8,144.79,2.5553]
[1718431096601,2.5552,144.8,144.78,25.5551]
[1718431096782,25.551,144.81,144.79,2.5554]
[1718431096988,31.951,144.81,144.79,2.5554]
[1718431097582,7.6655,144.81,144.79,2.5554]
[1718431097806,14.0655,144.81,144.79,2.5554]
[1718431098505,21.7307,144.81,144.79,2.5554]
[1718431099107,2.5551,144.81,144.79,2.5554]
[1718431099311,2.5548,144.83,144.8,7.6654]
[1718431099608,22.9926,144.83,144.8,22.9962]
[1718431099797,2.5548,144.82,144.81,2.555]
[1718431100195,2.5548,144.82,144.8,25.5512]
[1718431100385,2.5548,144.82,144.81,2.555]
[1718431101313,31.9474,144.83,144.81,2.555]
[1718431101513,25.5474,144.83,144.81,2.555]
[1718431101813,31.9474,144.83,144.81,2.555]
[1718431104507,31.9474,144.83,144.8,22.9962]
[1718431104508,2.5551,144.81,144.79,7.666]
[1718431104684,7.6652,144.81,144.79,7.666]
[1718431104880,2.5551,144.81,144.79,7.666]
[1718431105087,2.5551,144.81,144.79,15.3322]
[1718431105297,17.8856,144.81,144.78,5.1111]
[1718431105495,7.6654,144.81,144.79,7.6661]
[1718431105815,2.5552,144.81,144.8,2.5552]
[1718431106024,2.5552,144.81,144.79,25.5537]
[1718431106521,6.4,144.82,144.81,7.6651]
[1718431106814,14.0644,144.83,144.81,7.6651]
[1718431107819,6.4,144.82,144.81,7.6651]
[1718431108210,7.6637,144.84,144.81,22.9955]
[1718431108504,6.4,144.83,144.82,2.5548]
[1718431108811,14.0637,144.84,144.82,2.5548]
[1718431109324,14.0637,144.84,144.82,7.6645]
[1718431109483,6.4,144.84,144.83,2.5547]
[1718431109683,8.9545,144.84,144.82,25.5484]
[1718431110425,14.0636,144.84,144.82,7.6644]
[1718431110616,14.0636,144.84,144.82,2.5547]
[1718431111412,2.5547,144.83,144.82,2.5547]
[1718431111589,31.9454,144.84,144.82,2.5547]
[1718431112190,2.5547,144.83,144.82,2.5547]
[1718431112417,31.9454,144.84,144.82,2.5547]
[1718431113293,2.5547,144.83,144.82,2.5547]
[1718431113994,2.5547,144.83,144.81,25.5494]
[1718431114197,7.6641,144.83,144.81,25.5494]
[1718431114603,7.6641,144.83,144.81,17.8846]
[1718431114796,2.5547,144.83,144.81,22.9951]
[1718431115126,2.5547,144.83,144.81,25.55]
[1718431115790,7.6642,144.83,144.81,7.6647]
[1718431116227,15.3283,144.83,144.81,7.6647]
[1718431117627,2.5548,144.82,144.81,2.5549]
[1718431119218,7.6642,144.83,144.81,15.3301]
[1718431120502,7.6642,144.83,144.81,7.665]
[1718431120823,7.6642,144.83,144.81,15.3302]
[1718431121022,2.5548,144.82,144.81,2.5549]
[1718431121210,25.5475,144.83,144.81,2.5549]
[1718431121721,25.5475,144.83,144.81,7.665]
[1718431122017,15.3286,144.83,144.81,7.665]
[1718431122222,7.6643,144.83,144.81,7.665]
[1718431122424,15.3284,144.83,144.81,7.665]
[1718431123908,7.6643,144.83,144.81,7.665]
[1718431126531,7.6643,144.83,144.81,15.3301]
[1718431128329,2.5548,144.83,144.82,2.5548]